bitfinex-derivatives/quotes_SOLF0:USTF0_20251023
["timestamp","ask_amount","ask_price","bid_price","bid_amount"]
[1761237451521,0.97,191.32,191.25,2.72]
[1761237452030,5.6731,191.32,191.26,4.7044]
[1761237452323,5.6731,191.32,191.26,7.4244]
[1761237452723,4.7026,191.34,191.28,2.72]
[1761237454126,0.97,191.35,191.29,3.76]
[1761237454331,0.97,191.35,191.29,2.72]
[1761237454821,51.1346123,191.38,191.32,2.72]
[1761237455222,51.1346123,191.38,191.32,3.76]
[1761237456028,51.1346123,191.38,191.32,8.4629]
[1761237456523,0.97,191.37,191.34,2.72]
[1761237457320,7.4341123,191.4,191.34,2.72]
[1761237457531,8.4041123,191.4,191.34,3.76]
[1761237457728,7.4341123,191.4,191.34,3.76]
[1761237458026,0.97,191.38,191.34,1.04]
[1761237458332,0.97,191.36,191.28,2.72]
[1761237458526,4.7018,191.37,191.28,2.72]
[1761237458830,4.7018,191.37,191.31,7.4231]
[1761237459230,0.97,191.36,191.32,3.76]
[1761237459618,5.6722,191.36,191.32,1.04]
[1761237459925,0.97,191.35,191.29,4.7036]
[1761237460229,0.97,191.35,191.3,1.04]
[1761237460434,0.97,191.35,191.31,2.72]
[1761237461523,0.97,191.35,191.31,1.04]
[1761237463522,0.97,191.35,191.31,3.76]
[1761237467735,46.4330123,191.37,191.28,2.72]
[1761237467736,0.97,191.33,191.28,2.72]
[1761237467936,0.97,191.33,191.23,2.72]
[1761237468136,0.97,191.33,191.24,2.72]
[1761237468631,5.6729,191.33,191.2,5.4530123]
[1761237468838,5.6729,191.33,191.21,2.72]
[1761237469848,4.7029,191.33,191.21,2.72]
[1761237470147,4.7029,191.33,191.26,7.4243]
[1761237470148,0.97,191.32,191.26,7.4243]
[1761237471945,0.97,191.32,191.27,2.72]
[1761237472548,0.97,191.32,191.28,3.76]
[1761237472754,4.7029,191.33,191.29,2.72]
[1761237473050,5.6729,191.33,191.29,2.72]
[1761237473251,5.6729,191.33,191.3,1.04]
[1761237475256,0.97,191.32,191.3,1.04]
[1761237476552,5.6729,191.33,191.3,3.76]
[1761237476754,0.97,191.32,191.3,1.04]
[1761237479652,52.1059123,191.33,191.3,3.7]
[1761237480349,51.1359123,191.33,191.31,3.7]
[1761237480654,46.4330123,191.33,191.32,4.72929242]
[1761237480847,0.97,191.34,191.32,4.72929242]
[1761237481051,0.97,191.32,191.26,2.66]
[1761237481256,0.97,191.31,191.27,4.72918049]
[1761237481465,0.97,191.31,191.28,4.72918049]
[1761237481664,44.65,191.31,191.29,4.72918049]
[1761237481952,44.65,191.31,191.3,4.72918049]
[1761237482152,44.65,191.31,191.25,3.7]
[1761237482153,0.97,191.3,191.25,3.7]
[1761237482353,0.97,191.28,191.25,2.66]
[1761237482559,0.97,191.28,191.25,3.7]
[1761237483056,0.97,191.28,191.25,8.4045]
[1761237484458,0.97,191.28,191.25,3.7]
[1761237484652,0.97,191.28,191.23,4.705]
[1761237484952,2.7330123,191.26,191.24,3.7]
[1761237485454,3.7030123,191.26,191.22,2.66]
[1761237486059,0.97,191.25,191.23,1.04]
[1761237486956,0.97,191.24,191.18,2.66]
[1761237487156,4.81363217,191.29,191.18,3.7]
[1761237487157,3.7030123,191.21,191.18,3.7]
[1761237487660,2.7330123,191.21,191.18,3.7]
[1761237489763,3.7030123,191.21,191.16,7.3668]
[1761237489964,2.7330123,191.21,191.18,2.66]
[1761237490364,2.7330123,191.21,191.18,3.7]
[1761237491260,0.97,191.2,191.18,1.04]
[1761237491464,0.97,191.2,191.14,7.3674]
[1761237491668,0.97,191.2,191.15,1.04]
[1761237492164,0.97,191.2,191.15,3.7]
[1761237492464,0.97,191.2,191.16,2.66]
[1761237494864,1.75179752,191.17,191.16,2.66]
[1761237495369,1.75179752,191.17,191.16,1.04]
[1761237495669,2.72179752,191.17,191.16,1.04]
[1761237496074,2.72179752,191.17,191.13,2.66]
[1761237496371,1.75179752,191.16,191.14,3.7]
[1761237496563,1.75179752,191.16,191.14,2.66]
[1761237496763,1.75179752,191.16,191.15,1.04]
[1761237499372,1.75179752,191.16,191.14,2.66]
[1761237507176,43.68,191.22,191.16,2.73]
[1761237507377,1.75179752,191.2,191.16,2.73]
[1761237507582,1.75179752,191.2,191.17,2.73]
[1761237507780,2.72179752,191.2,191.17,2.73]
[1761237508076,0.97,191.19,191.15,2.73]
[1761237508280,0.97,191.19,191.16,2.73]
[1761237508478,1.75179752,191.18,191.16,2.73]
[1761237509376,2.72179752,191.19,191.16,2.73]
[1761237510085,1.75179752,191.19,191.16,2.73]
[1761237510284,1.75179752,191.21,191.18,2.62]
[1761237510576,45.43179752,191.22,191.19,4.7062]
[1761237510879,43.68,191.22,191.2,2.62]
[1761237512384,5.6748,191.25,191.22,2.62]
[1761237512385,1.75179752,191.25,191.22,2.62]
[1761237512679,1.75179752,191.27,191.22,2.62]
[1761237513076,1.75179752,191.27,191.24,2.62]
[1761237513471,48.4038,191.29,191.2,1.75179752]
[1761237513472,43.7,191.29,191.25,1.04]
[1761237513679,1.75179752,191.32,191.26,2.62]
[1761237514070,1.75179752,191.32,191.28,2.62]
[1761237514276,2.72179752,191.32,191.28,2.62]
[1761237514482,1.75179752,191.3,191.29,1.04]
[1761237514886,0.97,191.32,191.29,1.04]
[1761237515086,1.75179752,191.3,191.29,1.04]
[1761237515877,1.75179752,191.31,191.29,1.04]
[1761237516182,0.97,191.3,191.24,4.7049]
[1761237516488,2.72179752,191.29,191.26,2.62]
[1761237517381,0.97,191.28,191.24,7.3249]
[1761237517579,2.72179752,191.27,191.24,1.04]
[1761237517783,1.75179752,191.25,191.24,1.04]
[1761237520686,1.75179752,191.25,191.24,3.66]
[1761237521183,0.97,191.34,191.26,2.62]
[1761237521380,1.75179752,191.28,191.26,2.62]
[1761237521786,1.75179752,191.28,191.27,1.04]
[1761237522280,1.75179752,191.28,191.27,3.66]
[1761237522487,1.75179752,191.28,191.27,1.04]
[1761237527191,0.97,191.27,191.25,4.7046]
[1761237527487,1.75179752,191.26,191.25,7.3246]
[1761237527885,1.75179752,191.26,191.25,2.62]
[1761237528287,1.75179752,191.26,191.23,4.7051]
[1761237528490,1.75179752,191.24,191.23,7.3251]
[1761237529198,1.75179752,191.24,191.21,4.7055]
[1761237529487,1.75179752,191.22,191.21,2.62]
[1761237535595,1.75179752,191.22,191.2,4.7058]
[1761237535794,1.75179752,191.22,191.05,6.44895005]
[1761237535795,0.97,191.2,191.05,6.44895005]
[1761237535996,1.75179752,191.12,191.08,2.62]
[1761237536698,0.97,191.2,191.09,2.62]
[1761237536900,1.75179752,191.18,191.09,2.62]
[1761237537202,1.75179752,191.16,191.09,2.62]
[1761237537802,1.75179752,191.16,191.13,2.62]
[1761237538799,1.75179752,191.18,191.13,2.62]
[1761237539000,1.75179752,191.18,191.15,2.76]
[1761237539200,0.97,191.2,191.15,2.76]
[1761237539402,1.75179752,191.18,191.15,2.76]
[1761237539604,1.75179752,191.18,191.16,2.76]
[1761237540099,1.75179752,191.18,191.16,7.4667]
[1761237540300,0.97,191.23,191.17,2.76]
[1761237540301,1.75179752,191.21,191.17,2.76]
[1761237540705,0.97,191.28,191.2,2.76]
[1761237540902,1.75179752,191.24,191.2,2.76]
[1761237541608,1.75179752,191.26,191.17,2.76]
[1761237541906,1.75179752,191.26,191.19,2.76]
[1761237542207,1.75179752,191.26,191.22,2.76]
[1761237542604,1.75179752,191.24,191.22,2.76]
[1761237543202,1.75179752,191.24,191.17,2.76]
[1761237543396,1.75179752,191.21,191.17,2.76]
[1761237543606,1.75179752,191.19,191.11,2.76]
[1761237544512,1.75179752,191.21,191.18,2.76]
[1761237544911,5.6745,191.26,191.19,2.76]
[1761237545114,1.75179752,191.23,191.19,2.76]
[1761237545611,1.75179752,191.23,191.2,7.4657]
[1761237546715,1.75179752,191.23,191.21,4.7055]
[1761237546902,1.75179752,191.23,191.22,2.76]
[1761237547107,1.75179752,191.25,191.22,2.76]
[1761237547307,1.75179752,191.25,191.23,2.76]
[1761237547805,0.97,191.3,191.23,2.76]
[1761237547806,1.75179752,191.27,191.23,2.76]
[1761237549015,1.75179752,191.27,191.24,2.76]
[1761237549905,1.75179752,191.29,191.25,2.76]
[1761237550308,1.75179752,191.29,191.24,4.7047]
[1761237550309,2.72179752,191.29,191.24,4.7047]
[1761237550509,2.72179752,191.29,191.24,7.4647]
[1761237551711,1.75179752,191.29,191.27,4.704]
[1761237551913,6.3368197,191.33,191.28,2.76]
[1761237552216,1.75179752,191.29,191.21,2.76]
[1761237552512,1.75179752,191.27,191.25,7.4645]
[1761237552915,1.75179752,191.29,191.25,2.76]
[1761237553908,1.75179752,191.29,191.25,7.4646]
[1761237554213,1.75179752,191.27,191.21,2.76]
[1761237554417,1.75179752,191.23,191.21,2.76]
[1761237555115,1.75179752,191.23,191.17,2.76]
[1761237555616,1.75179752,191.23,191.21,4.7055]
[1761237555816,1.75179752,191.25,191.21,4.7055]
[1761237556313,1.75179752,191.25,191.21,7.4655]
[1761237556512,4.58502218,191.27,191.23,2.76]
[1761237556714,0.97,191.28,191.23,2.76]
[1761237557522,3.70377301,191.31,191.23,2.76]
[1761237558624,3.70377301,191.31,191.25,4.7045]
[1761237558921,0.97,191.31,191.25,7.4645]
[1761237559308,0.97,191.31,191.27,2.76]
[1761237559920,2.73377301,191.33,191.27,2.76]
[1761237560126,5.55502218,191.34,191.27,2.76]
[1761237560422,0.97,191.33,191.27,2.76]
[1761237561020,0.97,191.33,191.28,4.7038]
[1761237561222,0.97,191.33,191.28,7.4638]
[1761237562125,0.97,191.33,191.26,4.7043]
[1761237564028,3.70377301,191.32,191.26,4.7043]
[1761237564226,0.97,191.31,191.24,7.4648]
[1761237564422,4.60197249,191.31,191.24,7.4648]
[1761237564617,4.60197249,191.35,191.2,2.76]
[1761237564823,43.66,191.36,191.22,4.7053]
[1761237564824,0.97,191.28,191.22,4.7053]
[1761237565330,0.97,191.27,191.2,2.76]
[1761237565623,0.97,191.27,191.21,4.7055]
[1761237566020,0.97,191.27,191.22,7.5153]
[1761237566220,0.97,191.27,191.22,4.7053]
[1761237566625,0.97,191.26,191.22,4.7053]
[1761237567027,4.7047,191.25,191.19,2.81]
[1761237567727,4.7047,191.25,191.19,7.516]
[1761237568523,0.97,191.26,191.2,4.7058]
[1761237568827,0.97,191.26,191.2,7.5158]
[1761237570425,4.77347966,191.26,191.2,7.5158]
[1761237570625,9.37117328,191.26,191.2,7.5158]
[1761237572329,0.97,191.25,191.2,7.5158]
[1761237574343,0.97,191.25,191.21,2.85]
[1761237574542,0.97,191.25,191.21,7.5555]
[1761237575933,0.97,191.25,191.12,43.66]
[1761237575934,0.97,191.23,191.1,2.85]
[1761237576135,0.97,191.21,191.1,2.85]
[1761237576736,4.7063,191.19,191.13,4.7075]
[1761237577144,15.84124629,191.19,191.13,4.7075]
[1761237577345,10.27429362,191.18,191.11,2.85]
[1761237577735,3.80412895,191.17,191.11,2.85]
[1761237577938,8.40182257,191.17,191.11,2.85]
[1761237578935,8.40182257,191.17,191.12,4.7077]
[1761237579140,9.37182257,191.17,191.12,7.5577]
[1761237579342,9.37182257,191.17,191.13,2.85]
[1761237579738,4.77412895,191.17,191.13,2.85]
[1761237582148,4.7059,191.2,191.09,2.85]
[1761237582843,13.86123712,191.2,191.09,2.85]
[1761237583044,4.76988496,191.19,191.14,7.5573]
[1761237583252,0.97,191.18,191.14,7.5573]
[1761237586152,0.97,191.18,191.14,2.85]
[1761237593259,4.7058,191.21,191.15,2.85]
[1761237593463,8.16338127,191.22,191.15,2.85]
[1761237593759,0.97,191.26,191.15,2.85]
[1761237594155,0.97,191.26,191.14,2.73377301]
[1761237594156,5.6748,191.25,191.21,2.85]
[1761237594558,4.76076307,191.25,191.21,2.85]
[1761237594755,0.97,191.25,191.21,2.85]
[1761237596061,0.97,191.25,191.18,4.7063]
[1761237597064,5.675,191.24,191.18,4.7063]
[1761237597762,0.97,191.23,191.18,4.7063]
[1761237598060,0.97,191.22,191.18,7.5563]
[1761237598356,7.49453608,191.23,191.19,2.85]
[1761237598562,3.70377301,191.23,191.19,2.85]
[1761237598952,7.5564285,191.23,191.19,2.85]
[1761237599159,3.70377301,191.23,191.19,2.85]
[1761237599360,7.55626523,191.23,191.19,2.85]
[1761237600368,4.86409896,191.28,191.2,2.69]
[1761237600574,8.23156502,191.29,191.2,2.69]
[1761237600859,7.43607301,191.35,191.21,2.73377301]
[1761237601065,0.97,191.33,191.22,2.69]
[1761237601269,3.70377301,191.32,191.22,2.69]
[1761237601564,3.70377301,191.32,191.26,4.7042]
[1761237601764,7.56009075,191.32,191.26,4.7042]
[1761237602063,7.56009075,191.32,191.25,2.69]
[1761237603366,4.7028,191.33,191.27,2.69]
[1761237603761,3.85216761,191.34,191.27,2.69]
[1761237604168,0.97,191.33,191.27,2.69]
[1761237604364,0.97,191.31,191.27,2.69]
[1761237604669,0.97,191.31,191.24,7.3948]
[1761237604868,6.58594062,191.32,191.24,7.3948]
[1761237604869,0.97,191.3,191.24,7.3948]
[1761237605168,0.97,191.3,191.25,2.69]
[1761237608458,3.85216761,191.31,191.26,2.69]
[1761237608664,2.73377301,191.32,191.26,2.69]
[1761237608863,6.58594062,191.32,191.26,2.69]
[1761237609062,3.85216761,191.32,191.28,2.69]
[1761237609270,3.85216761,191.34,191.28,2.69]
[1761237609475,7.55594062,191.35,191.28,2.69]
[1761237609766,7.55594062,191.35,191.3,2.69]
[1761237609970,4.82216761,191.35,191.3,2.69]
[1761237610274,0.97,191.35,191.3,7.3933]
[1761237610473,0.97,191.35,191.31,2.69]
[1761237611563,2.73377301,191.34,191.31,2.69]
[1761237611771,0.97,191.33,191.27,2.69]
[1761237611969,2.73377301,191.31,191.27,2.69]
[1761237612766,2.73377301,191.31,191.27,7.394]
[1761237612966,2.73377301,191.31,191.28,2.69]
[1761237618378,7.43637301,191.34,191.29,2.69]
[1761237618578,8.40637301,191.34,191.29,2.69]
[1761237618777,1.7489315,191.32,191.29,2.69]
[1761237619171,1.7489315,191.32,191.29,4.7036]
[1761237619482,1.7489315,191.32,191.3,2.69]
[1761237619677,1.7489315,191.32,191.24,2.69]
[1761237619976,1.7489315,191.29,191.24,2.69]
[1761237620176,1.7489315,191.29,191.27,2.69]
[1761237620976,1.7489315,191.31,191.27,2.69]
[1761237621280,1.7489315,191.31,191.28,2.69]
[1761237621578,1.7489315,191.33,191.28,2.69]
[1761237621780,2.7189315,191.33,191.28,2.69]
[1761237622569,1.7489315,191.31,191.29,2.69]
[1761237627779,1.7489315,191.33,191.3,2.77]
[1761237629080,1.7489315,191.33,191.3,7.4733]
[1761237629275,1.7489315,191.33,191.31,2.72]
[1761237634787,1.7489315,191.33,191.32,2.72]
[1761237636098,1.7489315,191.35,191.32,2.72]
[1761237636393,1.7489315,191.36,191.32,2.72]
[1761237636594,1.7489315,191.36,191.34,4.7024]
[1761237636792,1.7489315,191.36,191.34,7.4224]
[1761237637397,1.7489315,191.36,191.35,2.72]
[1761237641984,1.7489315,191.38,191.35,2.72]
[1761237643083,1.7489315,191.4,191.38,2.72]
[1761237644908,8.15506935,191.42,191.38,2.72]
[1761237645097,1.7489315,191.4,191.38,2.72]
[1761237645894,3.78847951,191.41,191.39,2.72]
[1761237646096,1.7489315,191.43,191.39,2.72]
[1761237646997,1.7489315,191.43,191.39,4.7011]
[1761237647198,1.7489315,191.43,191.4,2.72]
[1761237649804,1.7489315,191.43,191.41,7.42716218]
[1761237650100,1.7489315,191.43,191.42,4.70716218]
[1761237650302,3.78847951,191.44,191.42,4.70716218]
[1761237650499,1.7489315,191.43,191.41,2.72]
[1761237650800,1.7489315,191.43,191.42,4.70624588]
[1761237651801,2.7189315,191.43,191.42,4.70624588]
[1761237652094,1.7489315,191.43,191.39,4.7011]
[1761237652295,1.7489315,191.4,191.39,7.4211]
[1761237652496,1.7489315,191.41,191.4,2.72]
[1761237652803,1.7489315,191.41,191.4,7.42535652]
[1761237654907,5.53741101,191.43,191.41,2.72]
[1761237655100,1.7489315,191.43,191.41,2.72]
[1761237656308,3.78847951,191.44,191.43,2.72]
[1761237656494,3.78847951,191.45,191.43,4.70327625]
[1761237656801,2.7189315,191.5,191.45,2.72]
[1761237656999,10.86158485,191.5,191.45,2.72]
[1761237657194,1.7489315,191.48,191.45,2.72]
[1761237657400,2.7189315,191.48,191.45,2.72]
[1761237657601,1.7489315,191.48,191.45,2.72]
[1761237659201,1.7489315,191.49,191.45,2.72]
[1761237659912,1.7489315,191.49,191.47,2.62]
[1761237660106,0.96,191.48,191.43,2.62]
[1761237660307,1.7489315,191.47,191.44,7.39952179]
[1761237660507,1.7489315,191.47,191.45,4.77952179]
[1761237660707,1.7489315,191.47,191.44,2.62]
[1761237660903,1.7489315,191.47,191.45,4.77895603]
[1761237661106,1.7489315,191.47,191.44,2.62]
[1761237661299,1.7489315,191.47,191.45,4.77832427]
[1761237661499,1.7489315,191.47,191.44,2.62]
[1761237661698,1.7489315,191.47,191.45,4.77760776]
[1761237661900,1.7489315,191.47,191.44,2.62]
[1761237662103,1.7489315,191.47,191.45,4.77775062]
[1761237662301,1.7489315,191.47,191.44,2.62]
[1761237662501,4.6986,191.5,191.46,2.62]
[1761237662502,0.96,191.5,191.46,2.62]
[1761237662701,1.7489315,191.48,191.46,2.62]
[1761237664012,5.31860374,191.5,191.46,2.62]
[1761237664212,1.7489315,191.5,191.48,2.62]
[1761237665010,2.7089315,191.5,191.46,7.3194]
[1761237665506,1.7489315,191.49,191.46,7.3194]
[1761237665705,1.7489315,191.49,191.47,2.62]
[1761237667000,43.58,191.51,191.48,2.62]
[1761237667604,1.7489315,191.5,191.48,2.62]
[1761237669114,1.7489315,191.5,191.49,2.62]
[1761237669710,43.58,191.51,191.49,2.62]
[1761237670113,45.3289315,191.51,191.49,2.62]
[1761237671211,43.58,191.51,191.47,2.62]
[1761237671412,1.7489315,191.48,191.41,2.62]
[1761237671608,1.7489315,191.48,191.43,2.62]
[1761237671804,1.7489315,191.48,191.45,2.62]
[1761237672004,1.7489315,191.48,191.46,7.40252657]
[1761237672205,1.7489315,191.48,191.46,2.62]
[1761237672407,1.7489315,191.5,191.47,4.78265714]
[1761237672611,1.7489315,191.5,191.48,7.40305546]
[1761237672811,1.7489315,191.5,191.48,2.62]
[1761237673412,0.96,191.5,191.46,2.62]
[1761237673613,1.7489315,191.49,191.47,4.78341811]
[1761237673919,1.7489315,191.49,191.46,2.62]
[1761237674117,1.7489315,191.49,191.47,4.78330786]
[1761237674425,1.7489315,191.49,191.47,2.62]
[1761237674620,1.7489315,191.49,191.48,2.62]
[1761237674924,1.7489315,191.49,191.48,7.40351339]
[1761237675819,1.7489315,191.5,191.48,12.10241339]
[1761237676124,1.7489315,191.5,191.48,7.3189]
[1761237676614,1.7489315,191.5,191.48,4.6989]
[1761237676821,1.7489315,191.5,191.48,7.3189]
[1761237677321,1.7489315,191.5,191.49,7.40627032]
[1761237677723,1.7489315,191.53,191.5,2.62]
[1761237677922,1.7489315,191.53,191.52,2.62]
[1761237678718,0.96,191.56,191.52,2.62]
[1761237679224,47.24647292,191.57,191.52,2.62]
[1761237679725,0.96,191.56,191.52,2.62]
[1761237680122,0.96,191.59,191.54,2.62]
[1761237680319,0.96,191.59,191.45,9.3995]
[1761237680320,0.96,191.56,191.55,4.78432205]
[1761237680624,2.72647292,191.58,191.5,2.62]
[1761237680828,2.72647292,191.58,191.51,7.40498354]
[1761237681029,2.72647292,191.58,191.52,12.10288354]
[1761237681231,0.96,191.57,191.53,7.40498354]
[1761237681430,0.96,191.57,191.53,2.62]
[1761237682526,0.96,191.57,191.54,4.78502539]
[1761237682825,0.96,191.57,191.53,2.62]
[1761237683018,0.96,191.57,191.54,4.78502596]
[1761237683327,0.96,191.57,191.53,2.62]
[1761237683526,43.54,191.59,191.54,7.40489767]
[1761237683726,0.96,191.58,191.47,2.62]
[1761237684029,0.96,191.58,191.49,2.62]
[1761237684225,0.96,191.58,191.51,2.62]
[1761237684426,46.26647292,191.59,191.52,4.78458304]
[1761237684427,0.96,191.55,191.52,4.78458304]
[1761237684626,0.96,191.55,191.53,4.78458304]
[1761237684825,3.68647292,191.57,191.53,2.62]
[1761237685233,3.68647292,191.57,191.54,4.78643081]
[1761237685432,0.96,191.56,191.54,4.78643081]
[1761237685929,0.96,191.56,191.5,7.3184]
[1761237686527,0.96,191.56,191.51,2.71]
[1761237686735,7.42337292,191.57,191.51,2.71]
[1761237686935,8.38337292,191.57,191.53,2.71]
[1761237687233,3.68647292,191.57,191.53,2.71]
[1761237687424,3.68647292,191.57,191.54,4.78857888]
[1761237687823,3.68647292,191.57,191.54,7.49857888]
[1761237688030,3.68647292,191.57,191.54,2.71]
[1761237688436,43.54,191.59,191.54,2.71]
[1761237688935,44.5,191.59,191.54,2.71]
[1761237689136,0.96,191.58,191.54,2.71]
[1761237689337,0.96,191.58,191.55,7.42895809]
[1761237689533,0.96,191.58,191.55,2.64]
[1761237689943,43.54,191.59,191.55,2.64]
[1761237690143,44.5,191.59,191.56,4.79002735]
[1761237690444,44.5,191.59,191.55,2.64]
[1761237690940,0.96,191.58,191.53,4.6976]
[1761237691144,0.96,191.58,191.54,4.78899093]
[1761237691343,0.96,191.56,191.55,4.78899093]
[1761237691543,0.96,191.56,191.5,4.6984]
[1761237691848,0.96,191.56,191.51,7.42933059]
[1761237692147,0.96,191.56,191.53,2.64]
[1761237692344,0.96,191.56,191.54,4.78933059]
[1761237692537,8.38337292,191.57,191.53,2.64]
[1761237692745,5.6569,191.57,191.54,4.7887363]
[1761237692944,5.6569,191.57,191.53,2.64]
[1761237693248,0.96,191.57,191.54,7.4287363]
[1761237693549,2.72647292,191.58,191.55,4.78818002]
[1761237693737,2.72647292,191.58,191.55,2.64]
[1761237693937,3.68647292,191.58,191.55,2.64]
[1761237694635,3.68647292,191.58,191.53,2.64]
[1761237694839,3.68647292,191.58,191.54,7.42768776]
[1761237695047,3.68647292,191.58,191.55,4.78768776]
[1761237695248,3.68647292,191.58,191.54,2.64]
[1761237695450,0.96,191.57,191.55,4.78778809]
[1761237695749,43.54,191.59,191.56,4.78689531]
[1761237695956,0.96,191.66,191.58,2.64]
[1761237695957,44.48,191.66,191.58,2.64]
[1761237696151,0.96,191.65,191.59,4.78689531]
[1761237696451,2.72647292,191.64,191.57,7.3367]
[1761237696650,0.96,191.65,191.58,7.4230426]
[1761237696853,3.68647292,191.65,191.59,4.7830426]
[1761237697052,0.96,191.64,191.6,4.7830426]
[1761237697252,0.96,191.64,191.61,4.7830426]
[1761237697545,0.96,191.64,191.58,2.64]
[1761237697848,0.96,191.64,191.59,7.42107104]
[1761237698043,0.96,191.64,191.6,4.78107104]
[1761237698351,0.96,191.64,191.59,2.64]
[1761237698544,0.96,191.64,191.6,4.78004788]
[1761237698844,0.96,191.64,191.59,2.64]
[1761237699048,2.72647292,191.62,191.55,7.3373]
[1761237699237,0.96,191.6,191.56,4.78225613]
[1761237699441,0.96,191.56,191.5,2.64]
[1761237699637,2.72647292,191.53,191.5,2.64]
[1761237700350,2.72647292,191.54,191.5,2.64]
[1761237700841,0.96,191.55,191.51,2.64]
[1761237701045,3.68647292,191.55,191.51,2.64]
[1761237701643,2.72647292,191.52,191.43,2.64]
[1761237702143,3.68647292,191.52,191.47,7.3391]
[1761237702343,2.72647292,191.49,191.38,2.64]
[1761237702543,5.6582,191.52,191.38,9.12541721]
[1761237702744,2.72647292,191.49,191.46,2.64]
[1761237702944,3.68647292,191.49,191.45,4.6997]
[1761237703849,3.68647292,191.49,191.46,2.64]
[1761237704243,3.68647292,191.49,191.39,2.64]
[1761237704244,0.96,191.48,191.39,2.64]
[1761237704545,3.68647292,191.43,191.39,2.64]
[1761237704746,3.68647292,191.43,191.3,9.4067]
[1761237704747,2.72647292,191.4,191.36,2.64]
[1761237704958,0.96,191.44,191.27,9.74873216]
[1761237704959,2.72647292,191.37,191.29,2.64]
[1761237705748,2.72647292,191.37,191.31,4.7031]
[1761237706544,2.72647292,191.34,191.3,2.64]
[1761237706947,2.72647292,191.31,191.23,2.64]
[1761237707253,2.72647292,191.28,191.23,2.64]
[1761237707646,3.68647292,191.33,191.23,2.64]
[1761237708257,3.68647292,191.33,191.24,7.3446]
[1761237708755,3.68647292,191.33,191.25,2.64]
[1761237709858,47.20647292,191.36,191.27,2.64]
[1761237710356,0.96,191.35,191.27,2.64]
[1761237710852,0.96,191.35,191.23,7.3449]
[1761237711056,50.94847292,191.36,191.24,2.64]
[1761237711057,3.68647292,191.33,191.24,2.64]
[1761237711755,3.68647292,191.33,191.26,2.64]
[1761237711756,0.96,191.33,191.26,2.64]
[1761237712353,0.96,191.33,191.27,4.7041]
[1761237712558,47.20647292,191.36,191.28,2.64]
[1761237713262,0.96,191.35,191.28,2.64]
[1761237719158,0.96,191.35,191.28,7.3437]
[1761237720768,0.96,191.35,191.29,4.7034]
[1761237720973,0.96,191.35,191.3,2.75]
[1761237723664,0.96,191.4,191.31,2.75]
[1761237723865,0.96,191.4,191.32,2.75]
[1761237724971,0.96,191.4,191.35,4.702]
[1761237725276,0.96,191.4,191.35,7.452]
[1761237725461,0.96,191.4,191.36,2.75]
[1761237726471,0.96,191.4,191.37,2.75]
[1761237726677,7.18,191.44,191.37,2.75]
[1761237727170,0.96,191.43,191.34,5.47647292]
[1761237727763,0.96,191.43,191.36,4.7018]
[1761237728974,0.96,191.41,191.36,4.7018]
[1761237729673,0.96,191.41,191.36,7.4518]
[1761237732575,0.96,191.41,191.36,4.7018]
[1761237733271,0.96,191.41,191.34,4.7023]
[1761237733664,0.96,191.4,191.32,2.75]